fUST/lending_fUST_20240110
["ID","MTS","AMOUNT","RATE_DAILY","PERIOD"]
[311033947,1704879043016,-500.0,0.00028219,2]
[311033948,1704879043026,-878.82,0.00028219,2]
[311033949,1704879043035,-500.0,0.00028219,2]
[311033950,1704879043045,-500.0,0.00028219,2]
[311033951,1704879043055,-500.0,0.00028219,2]
[311033952,1704879043064,-500.0,0.00028219,2]
[311033953,1704879043073,-2344.64,0.00028219,2]
[311033954,1704879043082,-500.0,0.00028219,2]
[311033955,1704879043091,-500.0,0.00028219,2]
[311033956,1704879043100,-500.0,0.00028219,2]
[311033957,1704879043109,-500.0,0.00028219,2]
[311033958,1704879043118,-780.73,0.00028219,2]
[311033959,1704879043128,-500.0,0.00028219,2]
[311033960,1704879043137,-974.11,0.00028219,2]
[311033961,1704879043146,-1323.97,0.00028219,2]
[311033962,1704879043155,-857.2,0.00028219,2]
[311033963,1704879043164,-6121.66,0.00028219,2]
[311033964,1704879043173,-1338.37,0.00028219,2]
[311033965,1704879043182,-1323.86,0.00028219,2]
[311033966,1704879043191,-5247.61,0.00028219,2]
[311033967,1704879043202,-2363.61,0.00028219,2]
[311033968,1704879043211,-500.0,0.00028219,2]
[311033969,1704879043221,-1251.42,0.00028219,2]
[311033970,1704879043230,-500.0,0.00028219,2]
[311033971,1704879043240,-500.0,0.00028219,2]
[311033972,1704879043249,-500.0,0.00028219,2]
[311033973,1704879043258,-500.0,0.00028219,2]
[311033974,1704879043270,-500.0,0.00028219,2]
[311033975,1704879043286,-500.0,0.00028219,2]
[311033976,1704879043297,-500.0,0.00028219,2]
[311033977,1704879043306,-30201.35,0.00028219,2]
[311033978,1704879043316,-3735.01,0.00028219,2]
[311033979,1704879043325,-500.0,0.00028219,2]
[311033980,1704879043334,-10789.9,0.00028219,2]
[311033981,1704879043344,-500.0,0.00028219,2]
[311033982,1704879043354,-1353.88,0.00028219,2]
[311033983,1704879043364,-500.0,0.00028219,5]
[311033984,1704879043373,-1724.45,0.00028219,2]
[311033986,1704879043383,-500.0,0.00028219,2]
[311033988,1704879043393,-500.0,0.00028219,2]
[311033990,1704879043403,-500.0,0.00028219,2]
[311033992,1704879043413,-573.19,0.00028219,2]
[311033994,1704879043423,-1934.89,0.00028219,2]
[311033996,1704879043433,-500.0,0.00028219,2]
[311033998,1704879043443,-2929.39,0.00028219,2]
[311034000,1704879043454,-500.0,0.00028219,2]
[311034002,1704879043463,-500.0,0.00028219,2]
[311034003,1704879043472,-500.0,0.00028219,2]
[311034005,1704879043482,-500.0,0.00028219,2]
[311034007,1704879043492,-500.0,0.00028219,2]
[311034008,1704879043501,-877.1,0.00028219,2]
[311034009,1704879043511,-530.56,0.00028219,2]
[311034011,1704879043521,-635.86,0.00028219,2]
[311034013,1704879043531,-1131.46,0.00028219,2]
[311034015,1704879043541,-2446.17,0.00028219,2]
[311034016,1704879043551,-500.0,0.00028219,2]
[311034017,1704879043561,-500.0,0.00028356,2]
[311034018,1704879043571,-15257.61211814,0.00028393,2]
[311034023,1704879043620,-90389.02676416,0.00028393,2]
[311034025,1704879043630,-166.666666,0.00028445,2]
[311034027,1704879043639,-500.0,0.00028493,2]
[311034029,1704879043649,-500.0,0.00028493,2]
[311034030,1704879043658,-1163.46,0.00028493,2]
[311034031,1704879043667,-500.0,0.00028493,2]
[311034032,1704879043677,-500.0,0.00028493,2]
[311034033,1704879043686,-500.0,0.00028493,2]
[311034034,1704879043696,-500.0,0.00028493,2]
[311034035,1704879043707,-500.0,0.00028493,2]
[311034036,1704879043716,-795.61,0.00028493,2]
[311034037,1704879043725,-500.0,0.00028493,2]
[311034038,1704879043734,-500.0,0.00028493,2]
[311034039,1704879043743,-780.27,0.00028493,2]
[311034040,1704879043753,-500.0,0.00028493,2]
[311034041,1704879043763,-500.0,0.00028493,2]
[311034042,1704879043772,-549.04,0.00028493,2]
[311034043,1704879043782,-500.0,0.00028493,2]
[311034044,1704879043792,-500.0,0.00028493,2]
[311034045,1704879043801,-500.0,0.00028493,2]
[311034046,1704879043811,-974.45,0.00028493,2]
[311034047,1704879043820,-500.0,0.00028493,2]
[311034048,1704879043830,-990.5,0.00028493,2]
[311034049,1704879043839,-425.37668231,0.00028493,2]
[311034050,1704879043848,-500.0,0.00028493,2]
[311034051,1704879043858,-878.82,0.00028493,2]
[311034052,1704879043866,-500.0,0.00028493,2]
[311034053,1704879043876,-2344.64,0.00028493,2]
[311034054,1704879043885,-409.79190279,0.00028493,2]
[311034055,1704879043894,-500.0,0.00028493,2]
[311034056,1704879043903,-500.0,0.00028493,2]
[311034057,1704879043913,-500.0,0.00028493,2]
[311034058,1704879043922,-780.73,0.00028493,2]
[311034059,1704879043932,-500.0,0.00028493,2]
[311034060,1704879043942,-974.11,0.00028493,2]
[311034061,1704879043954,-1323.97,0.00028493,2]
[311034062,1704879043965,-857.2,0.00028493,2]
[311034063,1704879043975,-1749.43457071,0.00028493,2]
[311034064,1704879043988,-4372.22542929,0.00028493,2]
[311034065,1704879043999,-1338.37,0.00028493,2]
[311034066,1704879044009,-1323.86,0.00028493,2]
[311034067,1704879044018,-517.08576084,0.00028493,2]
[311034068,1704879044077,-2873.08771636,0.00022472,2]
[311034069,1704879044086,-156.86767994,0.00022472,2]
[311034070,1704879044096,-312.98141829,0.00022473,2]
[311034071,1704879044105,-1944.45,0.00027387,3]
[311034072,1704879044114,-239.4820071,0.00028493,2]
[311034073,1704879044128,-4491.04223206,0.00028493,2]
[311034074,1704879044137,-2363.61,0.00028493,2]
[311034075,1704879044146,-500.0,0.00028493,2]
[311034076,1704879044155,-1251.42,0.00028493,2]
[311034077,1704879044164,-500.0,0.00028493,2]
[311034078,1704879044173,-500.0,0.00028493,2]
[311034079,1704879044183,-500.0,0.00028493,2]
[311034080,1704879044192,-500.0,0.00028493,2]
[311034081,1704879044201,-500.0,0.00028493,2]
[311034082,1704879044211,-500.0,0.00028493,2]
[311034083,1704879044220,-500.0,0.00028493,2]
[311034084,1704879044228,-30201.35,0.00028493,2]
[311034085,1704879044238,-3735.01,0.00028493,2]
[311034086,1704879044247,-500.0,0.00028493,2]
[311034087,1704879044256,-10789.9,0.00028493,2]
[311034088,1704879044266,-500.0,0.00028493,2]
[311034089,1704879044275,-1353.88,0.00028493,2]
[311034090,1704879044285,-500.0,0.00028493,5]
[311034091,1704879044294,-1724.45,0.00028493,2]
[311034092,1704879044304,-500.0,0.00028493,2]
[311034093,1704879044313,-500.0,0.00028493,2]
[311034094,1704879044322,-500.0,0.00028493,2]
[311034095,1704879044331,-573.19,0.00028493,2]
[311034096,1704879044341,-1934.89,0.00028493,2]
[311034097,1704879044350,-500.0,0.00028493,2]
[311034098,1704879044360,-2929.39,0.00028493,2]
[311034099,1704879044370,-500.0,0.00028493,2]
[311034100,1704879044379,-500.0,0.00028493,2]
[311034101,1704879044388,-500.0,0.00028493,2]
[311034102,1704879044397,-500.0,0.00028493,2]
[311034103,1704879044407,-500.0,0.00028493,2]
[311034104,1704879044418,-877.1,0.00028493,2]
[311034105,1704879044428,-530.56,0.00028493,2]
[311034106,1704879044437,-635.86,0.00028493,2]
[311034107,1704879044447,-1131.46,0.00028493,2]
[311034108,1704879044457,-2446.17,0.00028493,2]
[311034109,1704879044467,-500.0,0.00028493,2]
[311034110,1704879044476,-629.21,0.0002863,2]
[311034111,1704879044486,-154.60913784,0.00028667,2]
[311034112,1704879044495,-816.631,0.00028729,4]
[311034113,1704879044505,-816.632,0.00028729,4]
[311034114,1704879044514,-816.631,0.00028729,4]
[311034115,1704879044524,-816.632,0.00028729,4]
[311034116,1704879044533,-816.631,0.00028729,4]
[311034117,1704879044542,-154.8915759,0.00028765,2]
[311034118,1704879044552,-293.90700249,0.00028765,2]
[311034119,1704879044566,-724.17582437,0.00028765,2]
[311034120,1704879044575,-500.0,0.00028767,2]
[311034121,1704879044584,-500.0,0.00028767,2]
[311034122,1704879044593,-1163.46,0.00028767,2]
[311034123,1704879044602,-500.0,0.00028767,2]
[311034124,1704879044612,-500.0,0.00028767,2]
[311034125,1704879044621,-500.0,0.00028767,2]
[311034126,1704879044630,-500.0,0.00028767,2]
[311034127,1704879044639,-500.0,0.00028767,2]
[311034128,1704879044649,-795.61,0.00028767,2]
[311034129,1704879044658,-500.0,0.00028767,2]
[311034130,1704879044667,-500.0,0.00028767,2]
[311034131,1704879044676,-780.27,0.00028767,2]
[311034132,1704879044685,-323.52963111,0.00028767,2]
[311034133,1704879044697,-176.47036889,0.00028767,2]
[311034134,1704879044708,-500.0,0.00028767,2]
[311034135,1704879044717,-549.04,0.00028767,2]
[311034136,1704879044726,-500.0,0.00028767,2]
[311034137,1704879044736,-500.0,0.00028767,2]
[311034138,1704879044745,-500.0,0.00028767,2]
[311034139,1704879044755,-974.45,0.00028767,2]
[311034140,1704879044764,-500.0,0.00028767,2]
[311034141,1704879044773,-990.5,0.00028767,2]
[311034142,1704879044783,-500.0,0.00028767,2]
[311034143,1704879044792,-878.82,0.00028767,2]
[311034144,1704879044802,-500.0,0.00028767,2]
[311034145,1704879044811,-1816.3371305,0.00028767,2]
[311034146,1704879044823,-528.3028695,0.00028767,2]
[311034147,1704879044832,-500.0,0.00028767,2]
[311034148,1704879044841,-500.0,0.00028767,2]
[311034149,1704879044850,-500.0,0.00028767,2]
[311034150,1704879044860,-780.73,0.00028767,2]
[311034151,1704879044869,-974.11,0.00028767,2]
[311034152,1704879044878,-1323.97,0.00028767,2]
[311034153,1704879044887,-857.2,0.00028767,2]
[311034154,1704879044896,-5475.16783299,0.00028767,2]
[311034155,1704879044909,-646.49216701,0.00028767,2]
[311034156,1704879044918,-1338.37,0.00028767,2]
[311034157,1704879044927,-1323.86,0.00028767,2]
[311034158,1704879044937,-3450.70025753,0.00028767,2]
[311034159,1704879044949,-1796.90974247,0.00028767,2]
[311034160,1704879044961,-2363.61,0.00028767,2]
[311034161,1704879044971,-296.16532757,0.00028767,2]
[311034162,1704879044982,-203.83467243,0.00028767,2]
[311034163,1704879044991,-1198.26844514,0.00028767,2]
[311034170,1704879046000,-828.29552574,0.00022472,2]
[311034222,1704879255672,150.90945433,0.00028786,120]
[311034223,1704879827052,150.93962415,0.00028709,30]
[311034224,1704879827111,150.93962415,0.00028135,120]
[311034226,1704880028863,200.0,0.00021856,7]
[311034228,1704880096965,-1865.16384844,0.00017877,2]
[311034229,1704880097143,-38.06456833,0.00017877,2]
[311034230,1704880151846,150.92453773,0.00028712,30]
[311034231,1704880151910,150.92453773,0.00028137,120]
[311034232,1704880176075,-335.55922696,0.00017877,2]
[311034233,1704880176276,-6.84814749,0.00017877,2]
[311034234,1704880176788,154.93802479,0.00017877,2]
[311034235,1704880177318,173.77305468,0.00017877,2]
[311034236,1704880177346,335.55922696,0.00017877,2]
[311034237,1704880177685,-110.10915973,0.00017877,2]
[311034238,1704880177713,-326.64585923,0.00017877,2]
[311034239,1704880177862,-436.75501896,0.00017877,2]
[311034240,1704880178015,-510.15070564,0.00017877,2]
[311034241,1704880179100,260.59423718,0.00017876,2]
[311034242,1704880179135,585.24258587,0.00017877,2]
[311034243,1704880179162,938.53585316,0.00017877,2]
[311034244,1704880180227,1493.30287025,0.00017877,2]
[311034245,1704880180712,-3642.39888945,0.00017877,2]
[311034246,1704880180916,-74.33467121,0.00017877,2]
[311034247,1704880182696,298.15345662,0.00017877,2]
[311034248,1704880192029,-336.83622964,0.00017877,2]
[311034249,1704880192212,-6.87420877,0.00017877,2]
[311034250,1704880193107,329.96202087,0.00017877,2]
[311034251,1704880193135,336.83622964,0.00017877,2]
[311034252,1704880193163,336.83622964,0.00017877,2]
[311034253,1704880193190,336.83622964,0.00017877,2]
[311034254,1704880193518,-183.30772924,0.00017877,2]
[311034255,1704880193546,-326.43335046,0.00017877,2]
[311034256,1704880193846,-293.00809091,0.00017877,2]
[311034257,1704880193874,-216.73298879,0.00017877,2]
[311034258,1704880193906,-786.6941872,0.00017877,2]
[311034259,1704880193994,-270.12440784,0.00017877,2]
[311034260,1704880194222,516.56977936,0.00017877,2]
[311034261,1704880194249,1535.22848125,0.00017877,2]
[311034262,1704880194281,-1130.53113875,0.00017877,2]
[311034263,1704880196724,154.93802479,0.00017877,2]
[311034264,1704880199073,-393.28972377,0.00017877,2]
[311034265,1704880199216,-8.02632089,0.00017877,2]
[311034266,1704880208377,-283.03935954,0.00016089,2]
[311034267,1704880208490,-5.77631346,0.00016089,2]
[311034268,1704880211672,-398.76411228,0.00017877,2]
[311034269,1704880211932,-8.13804311,0.00017877,2]
[311034270,1704880215046,-251.37959359,0.00017877,2]
[311034271,1704880215276,-5.13019579,0.00017877,2]
[311034272,1704880215456,-246.2493978,0.00017877,2]
[311034273,1704880215497,-251.37959359,0.00017877,2]
[311034274,1704880215537,-251.37959359,0.00017877,2]
[311034275,1704880215595,-774.76985405,0.00017877,2]
[311034276,1704880215660,723.56060807,0.00017877,2]
[311034277,1704880215693,-549.99097576,0.00017877,2]
[311034278,1704880225762,-280.0,0.00024042,7]
[311034279,1704880225787,-391.0,0.00026446,15]
[311034418,1704880233995,-811.04812397,0.00017877,2]
[311034419,1704880234126,-16.55200253,0.00017877,2]
[311034420,1704880234349,-154.93802479,0.00018858,3]
[311034421,1704880234358,-164.91655517,0.00018859,2]
[311034422,1704880234368,-400.02724112,0.0001886,2]
[311034423,1704880234378,-2927.32783457,0.0001886,2]
[311034424,1704880234387,-322.83363774,0.0001886,2]
[311034425,1704880234396,-253.55669293,0.00018861,2]
[311034426,1704880234406,-947.43868379,0.00018861,2]
[311034427,1704880234415,-642.93704766,0.00018862,2]
[311034428,1704880234424,-2111.82428223,0.00018862,2]
[311034429,1704880234560,-14678.47511949,0.00018862,2]
[311034430,1704880234570,-2808.94906759,0.00018863,2]
[311034431,1704880234580,-260.59423718,0.00018864,2]
[311034432,1704880234590,-509.68785768,0.00018866,2]
[311034433,1704880235117,794.49612144,0.00017877,2]
[311034434,1704880235145,729.28231759,0.00017877,2]
[311034447,1704880238787,-411.46614711,0.00018866,2]
[311034449,1704880238934,-37137.1951352,0.00018866,2]
[311034450,1704880238944,-242.59429943,0.00018869,2]
[311034451,1704880238953,-250.02365042,0.00018869,2]
[311034452,1704880238962,-190.78049304,0.00018869,2]
[311034453,1704880238972,-1055.40121923,0.00018869,2]
[311034454,1704880238981,-451.65400802,0.00018869,2]
[311034455,1704880238990,-242.91165155,0.00018869,2]
[311034456,1704880238999,-899.62480677,0.0001887,2]
[311034457,1704880239008,-322.3396954,0.0001887,2]
[311034458,1704880239017,-2379.0168726,0.00018873,2]
[311034459,1704880239026,-4801.37,0.00019885,3]
[311034460,1704880239035,-1562.9567857,0.00019895,2]
[311034461,1704880239045,-154.93802479,0.0002,2]
[311034462,1704880239054,-1195.09669838,0.0002,2]
[311034463,1704880239063,-236.79527182,0.0002,2]
[311034464,1704880239071,-266.19065175,0.0002,2]
[311034465,1704880239080,-853.57612089,0.0002,2]
[311034466,1704880239089,-2994.25505405,0.0002,2]
[311034467,1704880239098,-826.22437243,0.0002,2]
[311034468,1704880239106,-326.73090334,0.00021,2]
[311034469,1704880239115,-177.328897,0.00021179,2]
[311034470,1704880239124,-4225.96,0.00021836,3]
[311034471,1704880239133,-1821.85168105,0.00021856,2]
[311034472,1704880239142,-200.0,0.00021856,2]
[311034473,1704880239151,-2079.63666476,0.00021856,2]
[311034474,1704880239160,-300.0,0.00021856,2]
[311034475,1704880239169,-166.666666,0.00021918,2]
[311034476,1704880239179,-4001.14,0.0002199,3]
[311034477,1704880239189,-292.83058016,0.00022,4]
[311034478,1704880239198,-4917.8600325,0.00022,2]
[311034479,1704880239208,-156.86767994,0.00022,2]
[311034480,1704880239217,-348.08339068,0.00022,2]
[311034481,1704880239229,-3931.75997852,0.00022,2]
[311034482,1704880239238,-166.666666,0.00022431,2]
[311034483,1704880239247,-155.56645819,0.0002247,2]
[311034484,1704880239256,-469.64064105,0.0002247,2]
[311034485,1704880239266,-155.38243252,0.00022471,2]
[311034486,1704880239275,-1000.2331786,0.00022471,2]
[311034487,1704880239284,-4558.84521296,0.00022472,2]
[311034488,1704880239293,-80283.64591232,0.00022472,2]
[311034489,1704880239303,-166.666666,0.00022944,2]
[311034490,1704880239312,-500.0,0.00023,2]
[311034491,1704880239322,-2093.08732709,0.00023,2]
[311034492,1704880239330,-9920.80434626,0.00023,2]
[311034493,1704880239340,-166.666666,0.00023456,2]
[311034494,1704880239349,-166.666666,0.00023969,2]
[311034495,1704880239358,-500.0,0.00024,2]
[311034496,1704880239367,-2293.16748545,0.00024,2]
[311034497,1704880239376,-224.73053134,0.00024,2]
[311034498,1704880239385,-166.666666,0.00024482,2]
[311034499,1704880239394,-500.0,0.00025,2]
[311034500,1704880239403,-3000.0,0.00025,2]
[311034501,1704880239412,-614.01289661,0.00025,2]
[311034502,1704880239422,-4711.08145103,0.00025,2]
[311034503,1704880239431,-421.96234273,0.00025,2]
[311034504,1704880239440,-154.60913784,0.00025788,2]
[311034505,1704880239449,-1022.29431008,0.00025889,2]
[311034506,1704880239459,-500.0,0.00026,2]
[311034507,1704880239470,-525.91402641,0.00026,2]
[311034508,1704880239479,-2126.09470477,0.00026,2]
[311034509,1704880239489,-1300.41289442,0.00026393,2]
[311034510,1704880239499,-620.00027865,0.0002673,2]
[311034511,1704880239509,-677.61411434,0.00027,2]
[311034512,1704880239520,-733.25771754,0.00027,2]
[311034513,1704880239529,-1500.0,0.00027,2]
[311034514,1704880239539,-100623.54397842,0.00027079,2]
[311034515,1704880239548,-5000.0,0.00027179,2]
[311034516,1704880239558,-500.0,0.00027182,2]
[311034517,1704880239569,-606.05456266,0.00027182,2]
[311034518,1704880239578,-208.70435716,0.00027182,2]
[311034519,1704880239588,-500.0,0.00027182,2]
[311034520,1704880239598,-506.769534,0.00027182,2]
[311034521,1704880239607,-500.0,0.00027182,2]
[311034522,1704880239616,-500.0,0.00027182,2]
[311034523,1704880239626,-500.0,0.00027182,2]
[311034524,1704880239635,-500.0,0.00027182,2]
[311034525,1704880239644,-500.0,0.00027182,2]
[311034526,1704880239654,-500.0,0.00027182,2]
[311034527,1704880239663,-399.36100366,0.00027182,2]
[311034528,1704880239672,-500.0,0.00027182,2]
[311034529,1704880239681,-500.0,0.00027182,2]
[311034530,1704880239691,-500.0,0.00027182,2]
[311034531,1704880239701,-500.0,0.00027182,2]
[311034532,1704880239710,-500.0,0.00027182,2]
[311034533,1704880239720,-500.0,0.00027182,2]
[311034534,1704880239729,-500.0,0.00027182,2]
[311034535,1704880239738,-329.04227356,0.00027182,2]
[311034536,1704880239747,-500.0,0.00027182,2]
[311034537,1704880239757,-10701.28798817,0.00027183,2]
[311034538,1704880239766,-33577.67012932,0.00027183,2]
[311034539,1704880239776,-339.85854143,0.00027325,5]
[311034540,1704880239785,-9098.22062588,0.00027347,4]
[311034541,1704880239795,-261.94007701,0.00027396,2]
[311034542,1704880239804,-270.84848356,0.00027396,2]
[311034543,1704880239814,-212.6013036,0.00027396,2]
[311034544,1704880239823,-521.63523245,0.00027396,2]
[311034545,1704880239832,-290.40148856,0.00027396,2]
[311034546,1704880239841,-500.0,0.00027397,2]
[311034547,1704880239850,-500.0,0.00027397,2]
[311034548,1704880239860,-500.0,0.00027397,2]
[311034549,1704880239869,-537.0,0.00027397,2]
[311034550,1704880239878,-500.0,0.00027397,2]
[311034551,1704880239887,-500.0,0.00027397,2]
[311034552,1704880239896,-500.0,0.00027397,2]
[311034553,1704880239905,-500.0,0.00027397,2]
[311034554,1704880239914,-995.57,0.00027397,2]
[311034555,1704880239923,-500.0,0.00027397,2]
[311034556,1704880239932,-500.0,0.00027397,2]
[311034557,1704880239941,-501.18917969,0.00027397,2]
[311034558,1704880239954,-500.0,0.00027397,2]
[311034559,1704880239963,-500.0,0.00027397,2]
[311034560,1704880239974,-500.0,0.00027397,2]
[311034561,1704880239984,-500.0,0.00027397,2]
[311034562,1704880239993,-500.0,0.00027397,2]
[311034563,1704880240003,-500.0,0.00027397,2]
[311034564,1704880240012,-717.42,0.00027397,2]
[311034565,1704880240022,-500.0,0.00027397,2]
[311034566,1704880240031,-500.0,0.00027397,2]
[311034567,1704880240040,-500.0,0.00027397,2]
[311034568,1704880240049,-409.05798696,0.00027397,2]
[311034569,1704880240059,-500.0,0.00027397,2]
[311034570,1704880240068,-500.0,0.00027397,2]
[311034571,1704880240077,-500.0,0.00027397,2]
[311034572,1704880240086,-500.0,0.00027397,2]
[311034573,1704880240095,-500.0,0.00027397,2]
[311034574,1704880240104,-319.82573824,0.00027397,2]
[311034575,1704880240113,-500.0,0.00027397,2]
[311034576,1704880240122,-500.0,0.00027397,2]
[311034577,1704880240131,-500.0,0.00027397,2]
[311034578,1704880240141,-500.0,0.00027397,2]
[311034579,1704880240150,-1116.5,0.00027397,2]
[311034580,1704880240159,-500.0,0.00027397,2]
[311034581,1704880240168,-500.0,0.00027397,2]
[311034582,1704880240177,-398.56874292,0.00027397,2]
[311034583,1704880240186,-500.0,0.00027397,2]
[311034584,1704880240195,-500.0,0.00027397,2]
[311034585,1704880240205,-554.31,0.00027397,2]
[311034586,1704880240214,-628.12312548,0.00027397,2]
[311034587,1704880240225,-515.13168903,0.00027397,2]
[311034588,1704880240234,-500.0,0.00027397,2]
[311034589,1704880240243,-515.61042052,0.00027397,2]
[311034590,1704880240253,-500.0,0.00027397,2]
[311034591,1704880240262,-500.0,0.00027397,2]
[311034592,1704880240271,-1356.85,0.00027397,2]
[311034593,1704880240280,-500.0,0.00027397,2]
[311034594,1704880240289,-500.0,0.00027397,2]
[311034595,1704880240298,-500.0,0.00027397,2]
[311034596,1704880240307,-500.0,0.00027397,2]
[311034597,1704880240317,-500.0,0.00027397,2]
[311034598,1704880240328,-1379.2,0.00027397,2]
[311034599,1704880240337,-500.0,0.00027397,2]
[311034600,1704880240346,-500.0,0.00027397,2]
[311034601,1704880240355,-500.0,0.00027397,2]
[311034602,1704880240365,-500.0,0.00027397,2]
[311034603,1704880240375,-500.0,0.00027397,2]
[311034604,1704880240384,-500.0,0.00027397,2]
[311034605,1704880240393,-1135.76,0.00027397,2]
[311034606,1704880240402,-500.0,0.00027397,2]
[311034607,1704880240411,-500.0,0.00027397,2]
[311034608,1704880240420,-500.0,0.00027397,2]
[311034609,1704880240429,-1000.0,0.00027397,4]
[311034610,1704880240438,-500.0,0.00027397,2]
[311034611,1704880240447,-780.56,0.00027397,2]
[311034612,1704880240456,-780.56,0.00027397,2]
[311034613,1704880240466,-780.56,0.00027397,2]
[311034614,1704880240476,-780.56,0.00027397,2]
[311034615,1704880240485,-780.56,0.00027397,2]
[311034616,1704880240493,-500.0,0.00027397,2]
[311034617,1704880240502,-500.0,0.00027397,2]
[311034618,1704880240511,-666.5,0.00027397,2]
[311034619,1704880240520,-507.56888381,0.00027397,2]
[311034620,1704880240528,-2871.41,0.00027397,2]
[311034621,1704880240537,-500.0,0.00027397,2]
[311034622,1704880240546,-500.0,0.00027397,2]
[311034623,1704880240555,-500.0,0.00027397,2]
[311034624,1704880240564,-500.0,0.00027397,2]
[311034625,1704880240573,-1431.97,0.00027397,2]
[311034626,1704880240582,-500.0,0.00027397,2]
[311034627,1704880240591,-500.0,0.00027397,2]
[311034628,1704880240600,-500.0,0.00027397,2]
[311034629,1704880240609,-500.0,0.00027397,2]
[311034630,1704880240618,-500.0,0.00027397,2]
[311034631,1704880240627,-500.0,0.00027397,2]
[311034632,1704880240636,-956.23,0.00027397,2]
[311034633,1704880240646,-500.0,0.00027397,2]
[311034634,1704880240656,-500.0,0.00027397,2]
[311034635,1704880240665,-500.0,0.00027397,2]
[311034636,1704880240674,-500.0,0.00027397,2]
[311034637,1704880240684,-500.0,0.00027397,2]
[311034638,1704880240693,-500.0,0.00027397,2]
[311034639,1704880240702,-500.0,0.00027397,2]
[311034640,1704880240712,-500.0,0.00027397,2]
[311034641,1704880240722,-1046.73,0.00027397,2]
[311034642,1704880240731,-500.0,0.00027397,2]
[311034643,1704880240741,-503.66651068,0.00027397,2]
[311034644,1704880240750,-500.0,0.00027397,2]
[311034645,1704880240759,-500.0,0.00027397,2]
[311034646,1704880240768,-500.0,0.00027397,2]
[311034647,1704880240778,-500.0,0.00027397,2]
[311034648,1704880240787,-500.0,0.00027397,2]
[311034649,1704880240796,-500.0,0.00027397,2]
[311034650,1704880240806,-1554.78,0.00027397,2]
[311034651,1704880240815,-500.0,0.00027397,2]
[311034652,1704880240824,-1683.49,0.00027397,2]
[311034653,1704880240833,-500.0,0.00027397,2]
[311034654,1704880240843,-1446.34,0.00027397,2]
[311034655,1704880240852,-500.0,0.00027397,2]
[311034656,1704880240860,-3016.55,0.00027397,2]
[311034657,1704880240868,-500.0,0.00027397,2]
[311034658,1704880240877,-500.0,0.00027397,2]
[311034660,1704880240886,-500.0,0.00027397,2]
[311034662,1704880240895,-356.23431548,0.00027397,2]
[311034664,1704880240904,-500.0,0.00027397,2]
[311034665,1704880240913,-7189.71,0.00027397,2]
[311034666,1704880240922,-554.56,0.00027397,2]
[311034667,1704880240930,-500.0,0.00027397,2]
[311034668,1704880240939,-500.0,0.00027397,2]
[311034669,1704880240948,-501.18202632,0.00027397,2]
[311034670,1704880240957,-500.0,0.00027397,2]
[311034671,1704880240966,-500.0,0.00027397,2]
[311034672,1704880240976,-5365.55,0.00027397,2]
[311034673,1704880240985,-500.0,0.00027397,2]
[311034674,1704880240995,-500.0,0.00027397,2]
[311034675,1704880241004,-6751.63,0.00027397,2]
[311034676,1704880241013,-500.0,0.00027397,2]
[311034677,1704880241022,-500.0,0.00027397,2]
[311034678,1704880241030,-500.0,0.00027397,2]
[311034679,1704880241038,-500.0,0.00027397,2]
[311034680,1704880241047,-500.0,0.00027397,2]